[Event "*** SCC Grand Prix: Titled Tuesday Blitz"]
[Site "Chess.com"]
[Date "2020.08.04"]
[Round "4"]
[White "Konavets"]
[Black "PotapovaM"]
[Result "1-0"]
[WhiteElo "3071"]
[BlackElo "2539"]
[TimeControl "180+1"]
[EndTime "14:21:33 PDT"]
[Termination "Konavets won by resignation"]

1. e4 {[%clk 0:03:00.9]} 1... c5 {[%clk 0:02:59.4]} 2. Nf3 {[%clk 0:03:00.4]}
2... d6 {[%clk 0:03:00]} 3. d4 {[%clk 0:02:58.8]} 3... cxd4 {[%clk 0:03:00.9]}
4. Nxd4 {[%clk 0:02:59.5]} 4... Nf6 {[%clk 0:03:01.5]} 5. Nc3 {[%clk 0:02:59.9]}
5... a6 {[%clk 0:03:02.1]} 6. Be2 {[%clk 0:03:00.4]} 6... e5 {[%clk 0:03:02.5]}
7. Nb3 {[%clk 0:02:59.2]} 7... Be7 {[%clk 0:03:02.4]} 8. O-O {[%clk 0:02:59.6]}
8... O-O {[%clk 0:02:58.8]} 9. Kh1 {[%clk 0:03:00]} 9... Be6 {[%clk 0:02:56.4]}
10. f4 {[%clk 0:02:47.7]} 10... exf4 {[%clk 0:02:57.3]} 11. Bxf4 {[%clk
0:02:47.7]} 11... Nc6 {[%clk 0:02:57.8]} 12. Bd3 {[%clk 0:02:43.6]} 12... Ne5
{[%clk 0:02:57]} 13. Qe1 {[%clk 0:02:38.2]} 13... Rc8 {[%clk 0:02:26.2]} 14. Rd1
{[%clk 0:02:36.7]} 14... Qc7 {[%clk 0:02:21.9]} 15. Bg5 {[%clk 0:02:29]} 15...
Nfg4 {[%clk 0:02:14.7]} 16. Bf4 {[%clk 0:02:23.3]} 16... Nf6 {[%clk 0:02:13.2]}
17. Bg5 {[%clk 0:02:11.6]} 17... Nfg4 {[%clk 0:02:12.6]} 18. Bc1 {[%clk
0:02:11.7]} 18... Nf6 {[%clk 0:02:08.8]} 19. Nd4 {[%clk 0:02:10.3]} 19... Rfe8
{[%clk 0:02:03.9]} 20. Nf5 {[%clk 0:02:09.4]} 20... Bf8 {[%clk 0:01:51.3]} 21.
Qg3 {[%clk 0:02:09.3]} 21... Kh8 {[%clk 0:01:44.1]} 22. Bg5 {[%clk 0:02:04.4]}
22... Nfd7 {[%clk 0:01:28.1]} 23. Bf4 {[%clk 0:01:50.8]} 23... Nf6 {[%clk
0:01:23.9]} 24. Bg5 {[%clk 0:01:49.4]} 24... Nfd7 {[%clk 0:01:23.7]} 25. Ne3
{[%clk 0:01:49.8]} 25... Nb6 {[%clk 0:01:14.2]} 26. Bf4 {[%clk 0:01:39.3]} 26...
Be7 {[%clk 0:01:04.5]} 27. Bxe5 {[%clk 0:01:25.4]} 27... dxe5 {[%clk 0:01:04.2]}
28. Ned5 {[%clk 0:01:26.3]} 28... Nxd5 {[%clk 0:00:59.2]} 29. exd5 {[%clk
0:01:27.2]} 29... Bd6 {[%clk 0:00:22.3]} 30. dxe6 {[%clk 0:01:19.8]} 30... Rxe6
{[%clk 0:00:22.8]} 31. Bf5 {[%clk 0:01:18.9]} 31... e4 {[%clk 0:00:14.5]} 32.
Rxd6 {[%clk 0:01:17.4]} 1-0

[Event "*** SCC Grand Prix: Titled Tuesday Blitz"]
[Site "Chess.com"]
[Date "2020.08.04"]
[Round "4"]
[White "PSvidler"]
[Black "keepitcool9499"]
[Result "0-1"]
[WhiteElo "2928"]
[BlackElo "2647"]
[TimeControl "180+1"]
[EndTime "14:21:37 PDT"]
[Termination "keepitcool9499 won by resignation"]

1. c4 {[%clk 0:03:00.9]} 1... e6 {[%clk 0:02:55.9]} 2. g3 {[%clk 0:03:00.6]}
2... d5 {[%clk 0:02:56.8]} 3. Bg2 {[%clk 0:03:00.7]} 3... Nf6 {[%clk 0:02:57.2]}
4. b3 {[%clk 0:03:00.7]} 4... Be7 {[%clk 0:02:57]} 5. Bb2 {[%clk 0:03:01.3]}
5... O-O {[%clk 0:02:56.7]} 6. Nf3 {[%clk 0:03:01.1]} 6... b6 {[%clk 0:02:55.9]}
7. O-O {[%clk 0:03:01.4]} 7... Bb7 {[%clk 0:02:52.4]} 8. cxd5 {[%clk 0:02:58.6]}
8... exd5 {[%clk 0:02:51.7]} 9. d4 {[%clk 0:02:51.3]} 9... Nbd7 {[%clk
0:02:46.2]} 10. Nc3 {[%clk 0:02:51.1]} 10... Rc8 {[%clk 0:02:34]} 11. Rc1 {[%clk
0:02:50.7]} 11... c5 {[%clk 0:02:23.4]} 12. dxc5 {[%clk 0:02:49]} 12... Nxc5
{[%clk 0:02:14.4]} 13. Nd4 {[%clk 0:02:48.5]} 13... Nce4 {[%clk 0:02:08.7]} 14.
Nxe4 {[%clk 0:02:16.4]} 14... Nxe4 {[%clk 0:02:09.6]} 15. Bxe4 {[%clk
0:02:11.7]} 15... dxe4 {[%clk 0:02:07]} 16. Nf5 {[%clk 0:02:11.7]} 16... Rxc1
{[%clk 0:01:58.2]} 17. Qxc1 {[%clk 0:02:05.5]} 17... Bf6 {[%clk 0:01:55.6]} 18.
Rd1 {[%clk 0:02:04.2]} 18... Qc8 {[%clk 0:01:16]} 19. Qf4 {[%clk 0:01:54]} 19...
Qc2 {[%clk 0:00:23.5]} 20. Nh6+ {[%clk 0:01:53.9]} 20... Kh8 {[%clk 0:00:16.7]}
21. Qxf6 {[%clk 0:01:53.9]} 21... Qxd1+ {[%clk 0:00:14.8]} 22. Kg2 {[%clk
0:01:53.9]} 22... e3+ {[%clk 0:00:14.6]} 23. Kh3 {[%clk 0:01:54.1]} 23... Bc8+
{[%clk 0:00:12.2]} 24. Kh4 {[%clk 0:01:50.3]} 24... Qd8 {[%clk 0:00:11.2]} 25.
Qxd8 {[%clk 0:01:44.8]} 25... Rxd8 {[%clk 0:00:12.1]} 26. fxe3 {[%clk
0:01:34.2]} 26... Be6 {[%clk 0:00:06.6]} 27. Bd4 {[%clk 0:01:30.3]} 27... Rc8
{[%clk 0:00:04.7]} 28. g4 {[%clk 0:01:28.4]} 28... Rc2 {[%clk 0:00:04.8]} 29.
Nf5 {[%clk 0:01:27.8]} 29... Bxf5 {[%clk 0:00:04.6]} 30. gxf5 {[%clk 0:01:28]}
30... Rxa2 {[%clk 0:00:05.1]} 31. Kg3 {[%clk 0:01:22.9]} 31... Rxe2 {[%clk
0:00:05]} 0-1

[Event "*** SCC Grand Prix: Titled Tuesday Blitz"]
[Site "Chess.com"]
[Date "2020.08.04"]
[Round "4"]
[White "VincentKeymer"]
[Black "Isajevsky_Anton"]
[Result "1-0"]
[WhiteElo "2874"]
[BlackElo "2582"]
[TimeControl "180+1"]
[EndTime "14:21:44 PDT"]
[Termination "VincentKeymer won by resignation"]

1. Nf3 {[%clk 0:03:00.9]} 1... c5 {[%clk 0:02:59.6]} 2. c4 {[%clk 0:03:01.8]}
2... g6 {[%clk 0:02:59.1]} 3. Nc3 {[%clk 0:03:02.2]} 3... Bg7 {[%clk 0:02:59.1]}
4. g3 {[%clk 0:03:02.3]} 4... Nc6 {[%clk 0:02:58.4]} 5. Bg2 {[%clk 0:03:02.8]}
5... e6 {[%clk 0:02:58.7]} 6. d4 {[%clk 0:03:01.7]} 6... cxd4 {[%clk 0:02:58.7]}
7. Nb5 {[%clk 0:03:01.7]} 7... d5 {[%clk 0:02:59]} 8. cxd5 {[%clk 0:03:02]} 8...
Qa5+ {[%clk 0:02:58.6]} 9. Nd2 {[%clk 0:03:01.7]} 9... Qxb5 {[%clk 0:02:58.8]}
10. dxc6 {[%clk 0:03:01.8]} 10... Ne7 {[%clk 0:02:59]} 11. a4 {[%clk 0:02:57.4]}
11... Qb4 {[%clk 0:02:58.9]} 12. b3 {[%clk 0:02:44.7]} 12... Nxc6 {[%clk
0:02:19.8]} 13. Ba3 {[%clk 0:02:44.4]} 13... Qa5 {[%clk 0:02:18.5]} 14. O-O
{[%clk 0:02:42.4]} 14... Bf8 {[%clk 0:02:14.3]} 15. Nc4 {[%clk 0:02:40.1]} 15...
Qd8 {[%clk 0:02:13.8]} 16. Qc1 {[%clk 0:02:34.1]} 16... Bxa3 {[%clk 0:01:45.5]}
17. Qxa3 {[%clk 0:02:35]} 17... Qe7 {[%clk 0:01:45.8]} 18. Qb2 {[%clk
0:02:21.7]} 18... e5 {[%clk 0:01:23.5]} 19. e3 {[%clk 0:02:17.2]} 19... O-O
{[%clk 0:01:19.9]} 20. Bxc6 {[%clk 0:02:13]} 20... bxc6 {[%clk 0:01:19.3]} 21.
exd4 {[%clk 0:02:13.6]} 21... exd4 {[%clk 0:01:17.5]} 22. Qxd4 {[%clk
0:02:12.3]} 22... Be6 {[%clk 0:01:17.4]} 23. Rfe1 {[%clk 0:02:08.9]} 23... Rfd8
{[%clk 0:01:14]} 24. Qc3 {[%clk 0:02:08.3]} 24... Rab8 {[%clk 0:01:10.2]} 25.
Rab1 {[%clk 0:02:02]} 25... Qc5 {[%clk 0:01:07.9]} 26. Qa5 {[%clk 0:01:54.1]}
26... Qd4 {[%clk 0:01:04.5]} 27. Ne5 {[%clk 0:01:47.5]} 27... Bd5 {[%clk
0:00:55.5]} 28. Rbd1 {[%clk 0:01:17.1]} 28... Qb6 {[%clk 0:00:47.3]} 29. Qc3
{[%clk 0:00:59.6]} 29... Qb4 {[%clk 0:00:42.6]} 30. Qxb4 {[%clk 0:00:58.1]}
30... Rxb4 {[%clk 0:00:42.2]} 31. Nxc6 {[%clk 0:00:58.7]} 1-0

[Event "*** SCC Grand Prix: Titled Tuesday Blitz"]
[Site "Chess.com"]
[Date "2020.08.04"]
[Round "4"]
[White "creativity"]
[Black "Chuchofrio1"]
[Result "1-0"]
[WhiteElo "2039"]
[BlackElo "2314"]
[TimeControl "180+1"]
[EndTime "14:21:49 PDT"]
[Termination "creativity won by resignation"]

1. d4 {[%clk 0:03:00.9]} 1... f5 {[%clk 0:02:59.1]} 2. e4 {[%clk 0:03:00.5]}
2... fxe4 {[%clk 0:02:59]} 3. Nc3 {[%clk 0:02:58.9]} 3... Nf6 {[%clk 0:02:56.9]}
4. Bg5 {[%clk 0:02:58.6]} 4... e6 {[%clk 0:02:56.5]} 5. Nxe4 {[%clk 0:02:56.4]}
5... Be7 {[%clk 0:02:56.6]} 6. Ng3 {[%clk 0:02:54]} 6... O-O {[%clk 0:02:56]} 7.
Nf3 {[%clk 0:02:53.4]} 7... Nc6 {[%clk 0:02:56.1]} 8. c3 {[%clk 0:02:52.6]} 8...
d6 {[%clk 0:02:56.6]} 9. Bc4 {[%clk 0:02:48.5]} 9... Kh8 {[%clk 0:02:55.3]} 10.
O-O {[%clk 0:02:45.8]} 10... Nd5 {[%clk 0:02:44.6]} 11. Bxd5 {[%clk 0:02:38.8]}
11... Bxg5 {[%clk 0:02:37.8]} 12. Nxg5 {[%clk 0:02:22.8]} 12... Qxg5 {[%clk
0:02:35.1]} 13. Bxc6 {[%clk 0:02:21.7]} 13... bxc6 {[%clk 0:02:34.2]} 14. Qe2
{[%clk 0:02:18.8]} 14... a5 {[%clk 0:02:33.2]} 15. Rfe1 {[%clk 0:02:16.5]} 15...
Qf6 {[%clk 0:02:29]} 16. Ne4 {[%clk 0:02:15.6]} 16... Qf4 {[%clk 0:02:27.9]} 17.
g3 {[%clk 0:02:12.5]} 17... Qf5 {[%clk 0:02:25.6]} 18. h4 {[%clk 0:02:11.6]}
18... d5 {[%clk 0:02:23.3]} 19. Nc5 {[%clk 0:02:10.8]} 19... Rb8 {[%clk
0:02:11.4]} 20. a4 {[%clk 0:02:00.8]} 20... h6 {[%clk 0:02:09.8]} 21. Rad1
{[%clk 0:01:56.3]} 21... Rf6 {[%clk 0:01:47.4]} 22. Rd2 {[%clk 0:01:55.5]} 22...
Kg8 {[%clk 0:01:36.8]} 23. Qe3 {[%clk 0:01:51.2]} 23... Kf7 {[%clk 0:01:36]} 24.
Nd3 {[%clk 0:01:44.9]} 24... Ba6 {[%clk 0:01:31]} 25. Ne5+ {[%clk 0:01:43.6]}
25... Kg8 {[%clk 0:01:29.5]} 26. Nxc6 {[%clk 0:01:41.2]} 26... Rbf8 {[%clk
0:01:27]} 27. Ne7+ {[%clk 0:01:40.7]} 27... Kh8 {[%clk 0:01:21.3]} 28. Nxf5
{[%clk 0:01:40]} 28... Rxf5 {[%clk 0:01:21.7]} 29. Qxe6 {[%clk 0:01:39.6]} 29...
Bc4 {[%clk 0:01:22.2]} 30. Re5 {[%clk 0:01:33.6]} 30... Rf3 {[%clk 0:01:21.4]}
31. h5 {[%clk 0:01:26.2]} 31... R3f6 {[%clk 0:01:19.4]} 32. Qe7 {[%clk
0:01:23.1]} 32... R6f7 {[%clk 0:01:18]} 33. Qh4 {[%clk 0:01:21.7]} 33... c6
{[%clk 0:01:15.6]} 34. Re7 {[%clk 0:01:20.9]} 34... Rf6 {[%clk 0:01:15.4]} 35.
Qg4 {[%clk 0:01:20]} 35... Rg8 {[%clk 0:01:14.5]} 36. Rb7 {[%clk 0:01:14.1]}
36... Rff8 {[%clk 0:01:08.5]} 37. b3 {[%clk 0:01:11.9]} 37... Ba6 {[%clk
0:01:08]} 38. Rb6 {[%clk 0:01:11.5]} 38... Bc8 {[%clk 0:01:08.6]} 39. Qh4 {[%clk
0:01:01.6]} 39... Rf6 {[%clk 0:01:07.6]} 40. Re2 {[%clk 0:00:59.2]} 40... Rgf8
{[%clk 0:01:05.4]} 41. f4 {[%clk 0:00:58.5]} 41... Bf5 {[%clk 0:01:02.3]} 42.
Re5 {[%clk 0:00:57.6]} 42... Be4 {[%clk 0:01:02]} 43. Rb7 {[%clk 0:00:57]} 43...
Rg8 {[%clk 0:01:01.5]} 44. Ree7 {[%clk 0:00:54.4]} 44... Bf5 {[%clk 0:01:01.6]}
45. Rxg7 {[%clk 0:00:52.3]} 45... Rxg7 {[%clk 0:01:01.3]} 1-0

[Event "*** SCC Grand Prix: Titled Tuesday Blitz"]
[Site "Chess.com"]
[Date "2020.08.04"]
[Round "4"]
[White "elohunter1999"]
[Black "Bastiandash"]
[Result "1-0"]
[WhiteElo "2477"]
[BlackElo "2309"]
[TimeControl "180+1"]
[EndTime "14:21:57 PDT"]
[Termination "elohunter1999 won by resignation"]

1. e4 {[%clk 0:03:00.9]} 1... c6 {[%clk 0:02:59.7]} 2. Nc3 {[%clk 0:02:58.4]}
2... d5 {[%clk 0:03:00]} 3. Nf3 {[%clk 0:02:59.1]} 3... dxe4 {[%clk 0:03:00.9]}
4. Nxe4 {[%clk 0:02:59.1]} 4... Nf6 {[%clk 0:03:01.8]} 5. Qe2 {[%clk 0:02:59.4]}
5... Nxe4 {[%clk 0:02:58.6]} 6. Qxe4 {[%clk 0:03:00.3]} 6... Nd7 {[%clk
0:02:59]} 7. Bc4 {[%clk 0:02:59.5]} 7... Nf6 {[%clk 0:02:56.3]} 8. Ne5 {[%clk
0:02:33.4]} 8... e6 {[%clk 0:02:55.6]} 9. Qe2 {[%clk 0:02:33.9]} 9... Be7 {[%clk
0:02:52.7]} 10. O-O {[%clk 0:02:28.5]} 10... O-O {[%clk 0:02:52.7]} 11. Re1
{[%clk 0:02:24.4]} 11... Nd5 {[%clk 0:02:52.7]} 12. a4 {[%clk 0:02:24.2]} 12...
Bf6 {[%clk 0:02:49.8]} 13. Ra3 {[%clk 0:02:17.9]} 13... Qc7 {[%clk 0:02:24.6]}
14. d4 {[%clk 0:02:15.6]} 14... Bd7 {[%clk 0:02:22.5]} 15. Rh3 {[%clk
0:02:13.3]} 15... g6 {[%clk 0:02:21.2]} 16. Bh6 {[%clk 0:01:52.2]} 16... Rfe8
{[%clk 0:02:18.2]} 17. Qf3 {[%clk 0:01:52]} 17... Bxe5 {[%clk 0:01:57.8]} 18.
dxe5 {[%clk 0:01:50.8]} 18... Qa5 {[%clk 0:01:39.7]} 19. c3 {[%clk 0:01:40.9]}
19... Qd8 {[%clk 0:01:32.7]} 20. Rg3 {[%clk 0:01:30]} 20... Qe7 {[%clk 0:01:24]}
21. Bg5 {[%clk 0:01:29.7]} 21... Qf8 {[%clk 0:01:24.3]} 22. Re4 {[%clk
0:01:26.2]} 22... b5 {[%clk 0:01:21.7]} 23. Bxd5 {[%clk 0:01:18.3]} 23... exd5
{[%clk 0:01:08.5]} 24. Re3 {[%clk 0:00:59.8]} 24... bxa4 {[%clk 0:00:45.8]} 25.
Bf6 {[%clk 0:00:59.4]} 25... a3 {[%clk 0:00:39.6]} 26. bxa3 {[%clk 0:00:57.6]}
26... Qxa3 {[%clk 0:00:37.9]} 27. h4 {[%clk 0:00:57.4]} 27... Qa1+ {[%clk
0:00:25.6]} 28. Kh2 {[%clk 0:00:57]} 28... Qb1 {[%clk 0:00:24.7]} 29. Qf4 {[%clk
0:00:53.3]} 1-0

[Event "*** SCC Grand Prix: Titled Tuesday Blitz"]
[Site "Chess.com"]
[Date "2020.08.04"]
[Round "4"]
[White "Klavdia_Nik"]
[Black "boasovietica"]
[Result "0-1"]
[WhiteElo "2017"]
[BlackElo "2419"]
[TimeControl "180+1"]
[EndTime "14:21:59 PDT"]
[Termination "boasovietica won on time"]

1. Nf3 {[%clk 0:03:00.9]} 1... c5 {[%clk 0:02:59.3]} 2. c4 {[%clk 0:03:00]} 2...
Nc6 {[%clk 0:02:59.2]} 3. d4 {[%clk 0:02:55.4]} 3... cxd4 {[%clk 0:03:00.1]} 4.
Nxd4 {[%clk 0:02:55.3]} 4... g6 {[%clk 0:03:00.2]} 5. Nc3 {[%clk 0:02:53.4]}
5... Bg7 {[%clk 0:03:00.5]} 6. Nb3 {[%clk 0:02:53.2]} 6... d6 {[%clk 0:02:46.9]}
7. e4 {[%clk 0:02:47.4]} 7... Bxc3+ {[%clk 0:02:38.6]} 8. bxc3 {[%clk
0:02:46.7]} 8... Nf6 {[%clk 0:02:39.2]} 9. f3 {[%clk 0:02:36.6]} 9... O-O {[%clk
0:02:35.2]} 10. Be3 {[%clk 0:02:28.9]} 10... Be6 {[%clk 0:02:33.8]} 11. Be2
{[%clk 0:02:00.8]} 11... Na5 {[%clk 0:02:24.1]} 12. c5 {[%clk 0:01:50.3]} 12...
Nc4 {[%clk 0:02:23.5]} 13. Bd4 {[%clk 0:01:45.2]} 13... dxc5 {[%clk 0:02:03.6]}
14. Nxc5 {[%clk 0:01:42.7]} 14... Qc8 {[%clk 0:02:03.7]} 15. O-O {[%clk
0:01:27.8]} 15... b6 {[%clk 0:02:00.8]} 16. Nxe6 {[%clk 0:01:06.8]} 16... Qxe6
{[%clk 0:02:01.7]} 17. a4 {[%clk 0:00:44.5]} 17... Rfd8 {[%clk 0:01:50.7]} 18.
Qb3 {[%clk 0:00:37.3]} 18... Rac8 {[%clk 0:01:36.6]} 19. Rfd1 {[%clk 0:00:34.5]}
19... Nh5 {[%clk 0:01:24.9]} 20. Bf1 {[%clk 0:00:23.3]} 20... Nf4 {[%clk
0:01:19.6]} 21. g3 {[%clk 0:00:20.3]} 21... Nh3+ {[%clk 0:01:03.8]} 22. Kg2
{[%clk 0:00:20.5]} 22... Ng5 {[%clk 0:01:03.7]} 23. g4 {[%clk 0:00:16.7]} 23...
Ne3+ {[%clk 0:00:47.7]} 24. Bxe3 {[%clk 0:00:03.2]} 24... Qxb3 {[%clk
0:00:48.6]} 0-1

[Event "*** SCC Grand Prix: Titled Tuesday Blitz"]
[Site "Chess.com"]
[Date "2020.08.04"]
[Round "4"]
[White "RitvarsReimanis"]
[Black "Ural_bogatyr"]
[Result "1-0"]
[WhiteElo "2508"]
[BlackElo "2369"]
[TimeControl "180+1"]
[EndTime "14:22:05 PDT"]
[Termination "RitvarsReimanis won on time"]

1. d4 {[%clk 0:03:00.9]} 1... Nf6 {[%clk 0:02:59.3]} 2. c4 {[%clk 0:03:00.9]}
2... g6 {[%clk 0:02:59.7]} 3. Nc3 {[%clk 0:03:00.2]} 3... Bg7 {[%clk 0:02:59.4]}
4. e4 {[%clk 0:03:00.5]} 4... O-O {[%clk 0:02:59.7]} 5. Be2 {[%clk 0:03:01.4]}
5... d6 {[%clk 0:02:58.9]} 6. Nf3 {[%clk 0:03:02.3]} 6... e5 {[%clk 0:02:57.9]}
7. O-O {[%clk 0:03:03.2]} 7... Nc6 {[%clk 0:02:56.3]} 8. d5 {[%clk 0:03:03.8]}
8... Ne7 {[%clk 0:02:56.4]} 9. Kh1 {[%clk 0:03:04.7]} 9... a5 {[%clk 0:02:54.6]}
10. Ne1 {[%clk 0:03:04.7]} 10... Nd7 {[%clk 0:02:53.3]} 11. g4 {[%clk
0:03:03.6]} 11... Nc5 {[%clk 0:02:47.8]} 12. Nd3 {[%clk 0:03:03.4]} 12... Rb8
{[%clk 0:02:22.2]} 13. Nxc5 {[%clk 0:03:02.2]} 13... dxc5 {[%clk 0:02:22.4]} 14.
g5 {[%clk 0:02:54.7]} 14... Bd7 {[%clk 0:02:17.8]} 15. Bg4 {[%clk 0:02:48.8]}
15... Nc8 {[%clk 0:02:14.3]} 16. Be3 {[%clk 0:02:45.2]} 16... b6 {[%clk
0:02:08.6]} 17. b3 {[%clk 0:02:41.1]} 17... Nd6 {[%clk 0:02:07.9]} 18. a4 {[%clk
0:02:40.1]} 18... Qc8 {[%clk 0:01:59.6]} 19. Rg1 {[%clk 0:02:38.6]} 19... f5
{[%clk 0:01:38.3]} 20. gxf6 {[%clk 0:02:35]} 20... Rxf6 {[%clk 0:01:38.3]} 21.
h4 {[%clk 0:02:16.8]} 21... Bxg4 {[%clk 0:01:33.6]} 22. Qxg4 {[%clk 0:02:17.7]}
22... Qxg4 {[%clk 0:01:29.6]} 23. Rxg4 {[%clk 0:02:18.6]} 23... Kf7 {[%clk
0:01:18.4]} 24. Rag1 {[%clk 0:02:12.5]} 24... Rg8 {[%clk 0:01:11.4]} 25. Kg2
{[%clk 0:02:05.3]} 25... h6 {[%clk 0:01:06.7]} 26. Kf1 {[%clk 0:02:01.2]} 26...
Bf8 {[%clk 0:00:55.5]} 27. Ke2 {[%clk 0:01:59.9]} 27... Bg7 {[%clk 0:00:31.9]}
28. Kd3 {[%clk 0:01:58.5]} 28... Bf8 {[%clk 0:00:30.8]} 29. f4 {[%clk
0:01:50.1]} 29... exf4 {[%clk 0:00:12.9]} 30. e5 {[%clk 0:01:48.2]} 30... fxe3
{[%clk 0:00:13]} 31. exf6 {[%clk 0:01:48.5]} 31... Kxf6 {[%clk 0:00:12]} 32.
Ne4+ {[%clk 0:01:36.6]} 32... Nxe4 {[%clk 0:00:10]} 33. Rxe4 {[%clk 0:01:37.5]}
33... Bd6 {[%clk 0:00:08.7]} 34. Rf1+ {[%clk 0:01:35.1]} 34... Kg7 {[%clk
0:00:04.2]} 35. Rxe3 {[%clk 0:01:35.5]} 35... g5 {[%clk 0:00:01.8]} 36. h5
{[%clk 0:01:35.1]} 36... Bf4 {[%clk 0:00:01.7]} 37. Re6 {[%clk 0:01:35.2]} 37...
Rf8 {[%clk 0:00:01.4]} 38. Rg6+ {[%clk 0:01:32.4]} 38... Kh7 {[%clk 0:00:01.3]}
39. Re1 {[%clk 0:01:32.5]} 39... Rf7 {[%clk 0:00:01.7]} 40. Ree6 {[%clk
0:01:32.2]} 40... g4 {[%clk 0:00:01.9]} 41. Rxg4 {[%clk 0:01:31.5]} 41... Bg5
{[%clk 0:00:01.8]} 42. Rg3 {[%clk 0:01:24.4]} 1-0

[Event "*** SCC Grand Prix: Titled Tuesday Blitz"]
[Site "Chess.com"]
[Date "2020.08.04"]
[Round "4"]
[White "Ole83"]
[Black "Lion-Al-Messi"]
[Result "0-1"]
[WhiteElo "2315"]
[BlackElo "2479"]
[TimeControl "180+1"]
[EndTime "14:22:05 PDT"]
[Termination "Lion-Al-Messi won by resignation"]

1. Nf3 {[%clk 0:02:59.6]} 1... b6 {[%clk 0:03:00.9]} 2. b3 {[%clk 0:02:55.8]}
2... Bb7 {[%clk 0:03:01]} 3. Bb2 {[%clk 0:02:56.1]} 3... Nf6 {[%clk 0:03:01.2]}
4. g3 {[%clk 0:02:54.2]} 4... e6 {[%clk 0:03:00.9]} 5. Bg2 {[%clk 0:02:54.4]}
5... Be7 {[%clk 0:03:01.3]} 6. O-O {[%clk 0:02:54.2]} 6... O-O {[%clk
0:03:01.5]} 7. c4 {[%clk 0:02:54.2]} 7... c5 {[%clk 0:03:00.3]} 8. d3 {[%clk
0:02:53.1]} 8... d6 {[%clk 0:02:58.9]} 9. Nbd2 {[%clk 0:02:52.5]} 9... Nbd7
{[%clk 0:02:59]} 10. a3 {[%clk 0:02:51.2]} 10... Qc7 {[%clk 0:02:58.4]} 11. Qc2
{[%clk 0:02:51.3]} 11... d5 {[%clk 0:02:58.1]} 12. e3 {[%clk 0:02:47.1]} 12...
Rad8 {[%clk 0:02:53.2]} 13. Rad1 {[%clk 0:02:45.6]} 13... Qb8 {[%clk 0:02:53]}
14. Rfe1 {[%clk 0:02:44.2]} 14... Qa8 {[%clk 0:02:53.2]} 15. e4 {[%clk
0:02:33.8]} 15... d4 {[%clk 0:02:45.6]} 16. h3 {[%clk 0:02:26.3]} 16... e5
{[%clk 0:02:40.9]} 17. Nf1 {[%clk 0:02:24.5]} 17... Qb8 {[%clk 0:02:39.2]} 18.
Bc1 {[%clk 0:02:21.6]} 18... Bc6 {[%clk 0:02:38.7]} 19. Nh4 {[%clk 0:02:18]}
19... g6 {[%clk 0:02:34.3]} 20. Bh6 {[%clk 0:02:16.8]} 20... Rfe8 {[%clk
0:02:34.1]} 21. f4 {[%clk 0:02:16.9]} 21... Nh5 {[%clk 0:02:33.4]} 22. fxe5
{[%clk 0:01:51.3]} 22... Nxe5 {[%clk 0:02:29.9]} 23. Qf2 {[%clk 0:01:41.8]}
23... Bxh4 {[%clk 0:02:27.1]} 24. gxh4 {[%clk 0:01:41.1]} 24... Bd7 {[%clk
0:02:22.4]} 25. Ng3 {[%clk 0:01:30.5]} 25... Nxg3 {[%clk 0:01:53.7]} 26. Qxg3
{[%clk 0:01:29.8]} 26... Re6 {[%clk 0:01:48.8]} 27. h5 {[%clk 0:01:25.2]} 27...
Kh8 {[%clk 0:01:49.1]} 28. Rf1 {[%clk 0:01:21.9]} 28... Rg8 {[%clk 0:01:48.8]}
29. Qf4 {[%clk 0:00:54.4]} 29... gxh5 {[%clk 0:01:37.1]} 30. Bg5 {[%clk
0:00:53.6]} 30... Rgg6 {[%clk 0:01:32.7]} 31. Kh1 {[%clk 0:00:49.2]} 31... Qg8
{[%clk 0:01:31.9]} 32. h4 {[%clk 0:00:35.3]} 32... h6 {[%clk 0:01:31.7]} 33.
Bxh6 {[%clk 0:00:30.5]} 33... Rxg2 {[%clk 0:01:26.8]} 34. Rg1 {[%clk 0:00:20.9]}
34... Rxg1+ {[%clk 0:01:24.6]} 35. Rxg1 {[%clk 0:00:20.1]} 35... Ng4 {[%clk
0:01:25.1]} 36. Bg5 {[%clk 0:00:17.6]} 36... Rg6 {[%clk 0:01:22.3]} 37. Rxg4
{[%clk 0:00:16.2]} 37... Bxg4 {[%clk 0:01:20.4]} 38. e5 {[%clk 0:00:15.4]} 38...
Rxg5 {[%clk 0:01:19.7]} 39. hxg5 {[%clk 0:00:15.1]} 39... Qa8+ {[%clk
0:01:19.7]} 40. Kh2 {[%clk 0:00:15.1]} 40... Qf3 {[%clk 0:01:17.4]} 41. Qxf3
{[%clk 0:00:07]} 41... Bxf3 {[%clk 0:01:17.4]} 42. Kg3 {[%clk 0:00:07.4]} 42...
Bg4 {[%clk 0:01:17]} 0-1

[Event "*** SCC Grand Prix: Titled Tuesday Blitz"]
[Site "Chess.com"]
[Date "2020.08.04"]
[Round "4"]
[White "ferdipy"]
[Black "DrMamaliga"]
[Result "1-0"]
[WhiteElo "2319"]
[BlackElo "2177"]
[TimeControl "180+1"]
[EndTime "14:22:07 PDT"]
[Termination "ferdipy won on time"]

1. e4 {[%clk 0:03:00.9]} 1... e5 {[%clk 0:02:59.6]} 2. Nf3 {[%clk 0:02:59.4]}
2... Nc6 {[%clk 0:02:59.6]} 3. Bc4 {[%clk 0:02:59.5]} 3... Nf6 {[%clk 0:02:59]}
4. Ng5 {[%clk 0:02:59.9]} 4... d5 {[%clk 0:02:59.2]} 5. exd5 {[%clk 0:03:00.8]}
5... Na5 {[%clk 0:02:59.7]} 6. Bb5+ {[%clk 0:03:00.9]} 6... c6 {[%clk
0:03:00.3]} 7. dxc6 {[%clk 0:03:00.9]} 7... bxc6 {[%clk 0:03:01.2]} 8. Be2
{[%clk 0:03:01.4]} 8... h6 {[%clk 0:02:58.5]} 9. Nf3 {[%clk 0:03:01.7]} 9... e4
{[%clk 0:02:59]} 10. Ne5 {[%clk 0:03:01.7]} 10... Bc5 {[%clk 0:02:59.5]} 11. c3
{[%clk 0:03:01.4]} 11... O-O {[%clk 0:02:44.6]} 12. O-O {[%clk 0:02:51.4]} 12...
Qc7 {[%clk 0:02:38.8]} 13. d4 {[%clk 0:02:49.7]} 13... exd3 {[%clk 0:02:37.8]}
14. Nxd3 {[%clk 0:02:49.6]} 14... Bd6 {[%clk 0:02:37.8]} 15. h3 {[%clk
0:02:42.6]} 15... Rd8 {[%clk 0:02:35.1]} 16. Na3 {[%clk 0:02:40.4]} 16... Bxa3
{[%clk 0:02:29.8]} 17. bxa3 {[%clk 0:02:40.7]} 17... Ba6 {[%clk 0:02:27.3]} 18.
Qc2 {[%clk 0:02:40.7]} 18... Nc4 {[%clk 0:02:17.6]} 19. a4 {[%clk 0:02:36.4]}
19... Re8 {[%clk 0:02:10.1]} 20. Re1 {[%clk 0:02:30.1]} 20... Rad8 {[%clk
0:02:09.5]} 21. Nb4 {[%clk 0:02:28.1]} 21... Bb7 {[%clk 0:01:55.8]} 22. Bxh6
{[%clk 0:02:26.7]} 22... c5 {[%clk 0:01:39.3]} 23. Bxc4 {[%clk 0:01:41.8]} 23...
cxb4 {[%clk 0:01:38.6]} 24. Bb3 {[%clk 0:01:36.2]} 24... Be4 {[%clk 0:01:13]}
25. Rxe4 {[%clk 0:01:23.1]} 25... Nxe4 {[%clk 0:01:13.9]} 26. Re1 {[%clk
0:01:22.6]} 26... Qxc3 {[%clk 0:01:02.6]} 27. Qb1 {[%clk 0:01:14]} 27... gxh6
{[%clk 0:00:30.2]} 28. Rxe4 {[%clk 0:01:09.7]} 28... Rxe4 {[%clk 0:00:25.9]} 29.
Qxe4 {[%clk 0:01:10.6]} 29... Qd2 {[%clk 0:00:25.5]} 30. Qg6+ {[%clk 0:01:05.6]}
30... Kh8 {[%clk 0:00:25.3]} 31. Qf6+ {[%clk 0:01:04.6]} 31... Kg8 {[%clk
0:00:24.9]} 32. Bxf7+ {[%clk 0:01:03.2]} 32... Kh7 {[%clk 0:00:23.8]} 33. Bg6+
{[%clk 0:01:01.9]} 1-0